[Event "Titled Tuesday Blitz October 11 Early 2022"]
[White "Dwilewicz, Katarzyna"]
[Black "Dehtiarov, Roman"]
[WhiteFideId "1148486"]
[BlackFideId "14186640"]
[WhiteElo "2023"]
[BlackElo "2200"]
[Result "0-1"]
[Round "04"]
[TimeControl "180+1"]
[Date "2022.10.12"]
[WhiteClock "0:00:03"]
[BlackClock "0:00:12"]

1. e4 {[%clk 0:03:00]}  e5 {[%clk 0:02:56]} 2. Nf3 {[%clk 0:03:00]}  Nc6 {[%clk 0:02:56]} 3. Bc4 {[%clk 0:03:00]}  Nf6 {[%clk 0:02:56]} 4. d3 {[%clk 0:02:59]}  Bc5 {[%clk 0:02:55]} 5. O-O {[%clk 0:02:59]}  O-O {[%clk 0:02:55]} 6. h3 {[%clk 0:02:56]}  d6 {[%clk 0:02:51]} 7. c3 {[%clk 0:02:52]}  Be6 {[%clk 0:02:50]} 8. Bb3 {[%clk 0:02:51]}  Bb6 {[%clk 0:02:50]} 9. Re1 {[%clk 0:02:49]}  h6 {[%clk 0:02:48]} 10. Nbd2 {[%clk 0:02:49]}  Qe7 {[%clk 0:02:46]} 11. Nf1 {[%clk 0:02:48]}  Rad8 {[%clk 0:02:45]} 12. Ng3 {[%clk 0:02:46]}  Rfe8 {[%clk 0:02:45]} 13. Be3 {[%clk 0:02:43]}  d5 {[%clk 0:02:35]} 14. Bxb6 {[%clk 0:02:29]}  axb6 {[%clk 0:02:34]} 15. exd5 {[%clk 0:02:28]}  Bxd5 {[%clk 0:02:35]} 16. Qe2 {[%clk 0:02:04]}  Qd7 {[%clk 0:02:27]} 17. Rad1 {[%clk 0:02:00]}  Bxb3 {[%clk 0:02:24]} 18. axb3 {[%clk 0:01:59]}  Nd5 {[%clk 0:02:24]} 19. Qe4 {[%clk 0:01:39]}  g6 {[%clk 0:02:15]} 20. b4 {[%clk 0:01:30]}  b5 {[%clk 0:02:02]} 21. Qe2 {[%clk 0:00:49]}  Nf4 {[%clk 0:01:55]} 22. Qc2 {[%clk 0:00:49]}  f5 {[%clk 0:01:36]} 23. Re3 {[%clk 0:00:48]}  e4 {[%clk 0:01:27]} 24. Ne1 {[%clk 0:00:44]}  Kh7 {[%clk 0:01:14]} 25. d4 {[%clk 0:00:40]}  Nd5 {[%clk 0:01:09]} 26. Re2 {[%clk 0:00:40]}  Re7 {[%clk 0:01:06]} 27. f3 {[%clk 0:00:36]}  e3 {[%clk 0:00:58]} 28. Nd3 {[%clk 0:00:36]}  f4 {[%clk 0:00:53]} 29. Ne4 {[%clk 0:00:34]}  b6 {[%clk 0:00:47]} 30. Kh2 {[%clk 0:00:32]}  Kg7 {[%clk 0:00:46]} 31. Rg1 {[%clk 0:00:24]}  Rde8 {[%clk 0:00:46]} 32. g3 {[%clk 0:00:24]}  fxg3+ {[%clk 0:00:19]} 33. Rxg3 {[%clk 0:00:25]}  Qf5 {[%clk 0:00:17]} 34. Reg2 {[%clk 0:00:22]}  Re6 {[%clk 0:00:12]} 35. Qe2 {[%clk 0:00:20]}  Kh7 {[%clk 0:00:08]} 36. Kh1 {[%clk 0:00:20]}  g5 {[%clk 0:00:08]} 37. Rg4 {[%clk 0:00:19]}  Nf6 {[%clk 0:00:07]} 38. Nxf6+ {[%clk 0:00:17]}  Rxf6 {[%clk 0:00:08]} 39. R4g3 {[%clk 0:00:08]}  Ree6 {[%clk 0:00:05]} 40. Kg1 {[%clk 0:00:08]}  Rf7 {[%clk 0:00:06]} 41. Kh1 {[%clk 0:00:08]}  Ne7 {[%clk 0:00:06]} 42. Ne5 {[%clk 0:00:07]}  Rff6 {[%clk 0:00:05]} 43. Qxe3 {[%clk 0:00:07]}  Nd5 {[%clk 0:00:05]} 44. Qd2 {[%clk 0:00:06]}  Nf4 {[%clk 0:00:04]} 45. Rh2 {[%clk 0:00:07]}  Rd6 {[%clk 0:00:04]} 46. Qe1 {[%clk 0:00:03]}  Rfe6 {[%clk 0:00:05]} 47. Qe4 {[%clk 0:00:04]}  Qxe4 {[%clk 0:00:05]} 48. fxe4 {[%clk 0:00:05]}  Kg7 {[%clk 0:00:04]} 49. Rf2 {[%clk 0:00:05]}  Kh7 {[%clk 0:00:04]} 50. Kg1 {[%clk 0:00:05]}  c5 {[%clk 0:00:04]} 51. bxc5 {[%clk 0:00:04]}  bxc5 {[%clk 0:00:05]} 52. h4 {[%clk 0:00:03]}  cxd4 {[%clk 0:00:04]} 53. cxd4 {[%clk 0:00:03]}  Rxd4 {[%clk 0:00:05]} 54. Nf3 {[%clk 0:00:04]}  Rd1+ {[%clk 0:00:05]} 55. Kh2 {[%clk 0:00:03]}  Rxe4 {[%clk 0:00:05]} 56. hxg5 {[%clk 0:00:04]}  Ne2 {[%clk 0:00:05]} 57. g6+ {[%clk 0:00:04]}  Kg7 {[%clk 0:00:05]} 58. Rgg2 {[%clk 0:00:04]}  Nf4 {[%clk 0:00:03]} 59. Rg4 {[%clk 0:00:04]}  h5 {[%clk 0:00:03]} 60. Rg3 {[%clk 0:00:04]}  Ne6 {[%clk 0:00:03]} 61. Ng5 {[%clk 0:00:03]}  Rh4+ {[%clk 0:00:02]} 62. Rh3 {[%clk 0:00:03]}  Rxh3+ {[%clk 0:00:02]} 63. Nxh3 {[%clk 0:00:03]}  Kxg6 {[%clk 0:00:03]} 64. Nf4+ {[%clk 0:00:04]}  Nxf4 {[%clk 0:00:03]} 65. Rxf4 {[%clk 0:00:05]}  Rd2+ {[%clk 0:00:04]} 66. Kh3 {[%clk 0:00:05]}  Rxb2 {[%clk 0:00:04]} 67. Rf8 {[%clk 0:00:05]}  Rb3+ {[%clk 0:00:05]} 68. Kh4 {[%clk 0:00:05]}  Rb4+ {[%clk 0:00:06]} 69. Kh3 {[%clk 0:00:05]}  Rb3+ {[%clk 0:00:06]} 70. Kh4 {[%clk 0:00:05]}  Rb4+ {[%clk 0:00:07]} 71. Kh3 {[%clk 0:00:06]}  Rc4 {[%clk 0:00:08]} 72. Rg8+ {[%clk 0:00:05]}  Kh6 {[%clk 0:00:08]} 73. Rb8 {[%clk 0:00:05]}  b4 {[%clk 0:00:08]} 74. Rb5 {[%clk 0:00:05]}  Kg6 {[%clk 0:00:09]} 75. Kg3 {[%clk 0:00:05]}  Kh6 {[%clk 0:00:09]} 76. Kh3 {[%clk 0:00:05]}  Rd4 {[%clk 0:00:09]} 77. Kg3 {[%clk 0:00:05]}  Kg6 {[%clk 0:00:09]} 78. Kh3 {[%clk 0:00:06]}  h4 {[%clk 0:00:10]} 79. Rb6+ {[%clk 0:00:03]}  Kf5 {[%clk 0:00:10]} 80. Rb5+ {[%clk 0:00:03]}  Ke6 {[%clk 0:00:10]} 81. Rb6+ {[%clk 0:00:03]}  Kd5 {[%clk 0:00:11]} 82. Rb8 {[%clk 0:00:03]}  Kc4 {[%clk 0:00:11]} 83. Rc8+ {[%clk 0:00:03]}  Kb3 {[%clk 0:00:11]} 84. Rb8 {[%clk 0:00:03]}  Kc3 {[%clk 0:00:12]} 85. Rc8+ {[%clk 0:00:03]}  Kb2 {[%clk 0:00:12]} 0-1


[Site "https://www.chess.com"]

[Event "Titled Tuesday Blitz October 11 Early 2022"]
[White "Ernst, Sipke"]
[Black "Migot, Tangi"]
[WhiteFideId "1004689"]
[BlackFideId "662445"]
[WhiteElo "2438"]
[BlackElo "2470"]
[Result "1-0"]
[Round "04"]
[TimeControl "180+1"]
[Date "2022.10.12"]
[WhiteClock "0:00:27"]
[BlackClock "0:00:13"]

1. d4 {[%clk 0:03:00]}  Nf6 {[%clk 0:02:58]} 2. c4 {[%clk 0:03:00]}  g6 {[%clk 0:02:58]} 3. Nc3 {[%clk 0:03:00]}  d5 {[%clk 0:02:59]} 4. cxd5 {[%clk 0:03:00]}  Nxd5 {[%clk 0:03:00]} 5. e4 {[%clk 0:03:00]}  Nxc3 {[%clk 0:03:00]} 6. bxc3 {[%clk 0:03:01]}  Bg7 {[%clk 0:03:01]} 7. Nf3 {[%clk 0:03:01]}  c5 {[%clk 0:03:02]} 8. Be3 {[%clk 0:03:01]}  Qa5 {[%clk 0:03:00]} 9. Qd2 {[%clk 0:02:59]}  cxd4 {[%clk 0:03:00]} 10. cxd4 {[%clk 0:02:59]}  Qxd2+ {[%clk 0:02:59]} 11. Kxd2 {[%clk 0:03:00]}  O-O {[%clk 0:02:57]} 12. Rc1 {[%clk 0:02:44]}  Nc6 {[%clk 0:02:49]} 13. d5 {[%clk 0:02:44]}  Rd8 {[%clk 0:02:43]} 14. Ke1 {[%clk 0:02:44]}  Ne5 {[%clk 0:02:38]} 15. Nxe5 {[%clk 0:02:39]}  Bxe5 {[%clk 0:02:38]} 16. Bc4 {[%clk 0:02:30]}  e6 {[%clk 0:02:34]} 17. f4 {[%clk 0:02:27]}  exd5 {[%clk 0:02:28]} 18. Bxd5 {[%clk 0:02:23]}  Bd6 {[%clk 0:02:23]} 19. Kf2 {[%clk 0:02:22]}  Be6 {[%clk 0:02:15]} 20. Rhd1 {[%clk 0:02:11]}  Bxd5 {[%clk 0:02:12]} 21. Rxd5 {[%clk 0:02:10]}  b6 {[%clk 0:02:07]} 22. Kf3 {[%clk 0:01:57]}  Kf8 {[%clk 0:02:02]} 23. g4 {[%clk 0:01:57]}  Ke8 {[%clk 0:02:00]} 24. a4 {[%clk 0:01:46]}  Rd7 {[%clk 0:01:47]} 25. Rc6 {[%clk 0:01:36]}  Rad8 {[%clk 0:01:34]} 26. a5 {[%clk 0:01:35]}  Bc5 {[%clk 0:01:32]} 27. Bxc5 {[%clk 0:01:29]}  Rxd5 {[%clk 0:01:23]} 28. exd5 {[%clk 0:01:28]}  bxc5 {[%clk 0:01:23]} 29. Rxc5 {[%clk 0:01:24]}  Kd7 {[%clk 0:01:08]} 30. Rc6 {[%clk 0:01:24]}  Rb8 {[%clk 0:01:05]} 31. Ra6 {[%clk 0:01:21]}  Rb7 {[%clk 0:01:05]} 32. g5 {[%clk 0:01:18]}  Rb3+ {[%clk 0:00:59]} 33. Ke4 {[%clk 0:01:18]}  Rb7 {[%clk 0:00:55]} 34. Ke5 {[%clk 0:01:18]}  Ke7 {[%clk 0:00:55]} 35. Rc6 {[%clk 0:01:16]}  Kd7 {[%clk 0:00:49]} 36. Rf6 {[%clk 0:01:15]}  Ke7 {[%clk 0:00:48]} 37. Ra6 {[%clk 0:01:15]}  Kd7 {[%clk 0:00:39]} 38. Kf6 {[%clk 0:01:12]}  Ke8 {[%clk 0:00:40]} 39. h4 {[%clk 0:01:08]}  Rd7 {[%clk 0:00:38]} 40. d6 {[%clk 0:01:01]}  Rb7 {[%clk 0:00:35]} 41. Rc6 {[%clk 0:00:59]}  Rb5 {[%clk 0:00:29]} 42. Ra6 {[%clk 0:00:42]}  Rf5+ {[%clk 0:00:23]} 43. Kg7 {[%clk 0:00:41]}  Rxf4 {[%clk 0:00:17]} 44. Rxa7 {[%clk 0:00:42]}  Rxh4 {[%clk 0:00:17]} 45. a6 {[%clk 0:00:32]}  Ra4 {[%clk 0:00:16]} 46. Re7+ {[%clk 0:00:32]}  Kd8 {[%clk 0:00:17]} 47. a7 {[%clk 0:00:33]}  Ra5 {[%clk 0:00:14]} 48. Rxf7 {[%clk 0:00:29]}  Ra6 {[%clk 0:00:13]} 49. a8=Q+ {[%clk 0:00:27]} 1-0


[Site "https://www.chess.com"]

[Event "Titled Tuesday Blitz October 11 Early 2022"]
[White "Fernandez Garcia, Gumersindo"]
[Black "Mindlin, Alon"]
[WhiteFideId "24516740"]
[BlackFideId "2800071"]
[WhiteElo "2072"]
[BlackElo "2417"]
[Result "0-1"]
[Round "04"]
[TimeControl "180+1"]
[Date "2022.10.12"]
[WhiteClock "0:00:29"]
[BlackClock "0:01:28"]

1. Nf3 {[%clk 0:03:00]}  Nf6 {[%clk 0:03:00]} 2. g3 {[%clk 0:03:01]}  b5 {[%clk 0:02:59]} 3. Bg2 {[%clk 0:03:02]}  Bb7 {[%clk 0:03:00]} 4. O-O {[%clk 0:03:02]}  c5 {[%clk 0:03:01]} 5. a4 {[%clk 0:03:03]}  a6 {[%clk 0:03:00]} 6. axb5 {[%clk 0:03:02]}  axb5 {[%clk 0:03:01]} 7. Rxa8 {[%clk 0:03:03]}  Bxa8 {[%clk 0:03:02]} 8. b3 {[%clk 0:03:02]}  d6 {[%clk 0:02:59]} 9. Bb2 {[%clk 0:03:02]}  Nbd7 {[%clk 0:02:58]} 10. d3 {[%clk 0:03:03]}  g6 {[%clk 0:02:56]} 11. Nbd2 {[%clk 0:02:58]}  Bg7 {[%clk 0:02:55]} 12. c4 {[%clk 0:02:53]}  bxc4 {[%clk 0:02:53]} 13. bxc4 {[%clk 0:02:53]}  O-O {[%clk 0:02:54]} 14. Qa1 {[%clk 0:02:50]}  Bc6 {[%clk 0:02:46]} 15. e4 {[%clk 0:02:46]}  Qb6 {[%clk 0:02:30]} 16. Bc3 {[%clk 0:02:35]}  Ra8 {[%clk 0:02:28]} 17. Qb1 {[%clk 0:02:35]}  Qxb1 {[%clk 0:02:27]} 18. Rxb1 {[%clk 0:02:36]}  Ng4 {[%clk 0:02:22]} 19. Bxg7 {[%clk 0:02:34]}  Kxg7 {[%clk 0:02:23]} 20. Bf1 {[%clk 0:02:23]}  Ra2 {[%clk 0:02:02]} 21. Kg2 {[%clk 0:02:10]}  Nde5 {[%clk 0:02:00]} 22. h3 {[%clk 0:02:10]}  Nxf3 {[%clk 0:02:00]} 23. Nxf3 {[%clk 0:02:09]}  Rxf2+ {[%clk 0:01:56]} 24. Kh1 {[%clk 0:01:47]}  Ne3 {[%clk 0:01:53]} 25. Nh2 {[%clk 0:01:42]}  f5 {[%clk 0:01:47]} 26. Kg1 {[%clk 0:01:35]}  Rc2 {[%clk 0:01:47]} 27. Re1 {[%clk 0:01:33]}  Nxf1 {[%clk 0:01:44]} 28. Nxf1 {[%clk 0:01:29]}  fxe4 {[%clk 0:01:44]} 29. Ne3 {[%clk 0:01:27]}  Rc3 {[%clk 0:01:41]} 30. dxe4 {[%clk 0:01:27]}  Bxe4 {[%clk 0:01:41]} 31. h4 {[%clk 0:01:26]}  Kf7 {[%clk 0:01:37]} 32. Kf2 {[%clk 0:01:23]}  Bc6 {[%clk 0:01:37]} 33. g4 {[%clk 0:01:19]}  e6 {[%clk 0:01:33]} 34. Ra1 {[%clk 0:01:18]}  d5 {[%clk 0:01:33]} 35. Ra7+ {[%clk 0:01:15]}  Ke8 {[%clk 0:01:32]} 36. cxd5 {[%clk 0:01:14]}  exd5 {[%clk 0:01:32]} 37. Rc7 {[%clk 0:01:09]}  d4 {[%clk 0:01:32]} 38. Rxc6 {[%clk 0:01:04]}  Kd7 {[%clk 0:01:33]} 39. Ra6 {[%clk 0:00:33]}  Rxe3 {[%clk 0:01:32]} 40. Ra7+ {[%clk 0:00:33]}  Kd6 {[%clk 0:01:31]} 41. Rxh7 {[%clk 0:00:34]}  c4 {[%clk 0:01:31]} 42. Rg7 {[%clk 0:00:33]}  c3 {[%clk 0:01:31]} 43. Rxg6+ {[%clk 0:00:34]}  Kd5 {[%clk 0:01:32]} 44. Rg8 {[%clk 0:00:34]}  c2 {[%clk 0:01:32]} 45. Rd8+ {[%clk 0:00:33]}  Ke5 {[%clk 0:01:31]} 46. Rc8 {[%clk 0:00:29]}  Rc3 {[%clk 0:01:30]} 47. Re8+ {[%clk 0:00:30]}  Kf4 {[%clk 0:01:29]} 48. Re1 {[%clk 0:00:29]}  c1=Q {[%clk 0:01:27]} 49. Rxc1 {[%clk 0:00:29]}  Rxc1 {[%clk 0:01:28]} 0-1


[Site "https://www.chess.com"]

[Event "Titled Tuesday Blitz October 11 Early 2022"]
[White "Fernandez Hernandez, Gerardo"]
[Black "Kaganskiy, Gleb"]
[WhiteFideId "2207400"]
[BlackFideId "4132025"]
[WhiteElo "2140"]
[BlackElo "2165"]
[Result "1-0"]
[Round "04"]
[TimeControl "180+1"]
[Date "2022.10.12"]
[WhiteClock "0:00:03"]
[BlackClock "0:00:01"]

1. e4 {[%clk 0:02:58]}  e6 {[%clk 0:02:55]} 2. d3 {[%clk 0:02:58]}  d5 {[%clk 0:02:56]} 3. Nd2 {[%clk 0:02:58]}  Nc6 {[%clk 0:02:50]} 4. Ngf3 {[%clk 0:02:57]}  Nf6 {[%clk 0:02:46]} 5. c3 {[%clk 0:02:54]}  a5 {[%clk 0:02:33]} 6. a4 {[%clk 0:02:46]}  b6 {[%clk 0:02:32]} 7. e5 {[%clk 0:02:41]}  Nd7 {[%clk 0:02:31]} 8. d4 {[%clk 0:02:42]}  f6 {[%clk 0:02:24]} 9. Bb5 {[%clk 0:02:40]}  Bb7 {[%clk 0:02:21]} 10. exf6 {[%clk 0:02:34]}  Qxf6 {[%clk 0:02:17]} 11. O-O {[%clk 0:02:34]}  Bd6 {[%clk 0:02:17]} 12. Re1 {[%clk 0:02:21]}  O-O {[%clk 0:02:14]} 13. Qe2 {[%clk 0:02:04]}  Rae8 {[%clk 0:02:13]} 14. Bxc6 {[%clk 0:01:39]}  Bxc6 {[%clk 0:02:12]} 15. Ne5 {[%clk 0:01:40]}  Bxe5 {[%clk 0:02:02]} 16. dxe5 {[%clk 0:01:37]}  Qf7 {[%clk 0:02:02]} 17. Nf3 {[%clk 0:01:34]}  h6 {[%clk 0:01:59]} 18. Bd2 {[%clk 0:01:21]}  Nc5 {[%clk 0:01:57]} 19. Nd4 {[%clk 0:01:18]}  Bd7 {[%clk 0:01:43]} 20. b3 {[%clk 0:01:13]}  Ne4 {[%clk 0:01:39]} 21. f3 {[%clk 0:01:11]}  Nxd2 {[%clk 0:01:22]} 22. Qxd2 {[%clk 0:01:12]}  c5 {[%clk 0:01:21]} 23. Nc2 {[%clk 0:01:01]}  Qf4 {[%clk 0:01:15]} 24. Qxf4 {[%clk 0:00:53]}  Rxf4 {[%clk 0:01:15]} 25. Kf2 {[%clk 0:00:51]}  Ref8 {[%clk 0:01:13]} 26. Re3 {[%clk 0:00:49]}  Bc6 {[%clk 0:01:11]} 27. g3 {[%clk 0:00:48]}  R4f5 {[%clk 0:01:11]} 28. f4 {[%clk 0:00:48]}  g5 {[%clk 0:01:11]} 29. Re2 {[%clk 0:00:29]}  gxf4 {[%clk 0:01:10]} 30. g4 {[%clk 0:00:29]}  f3 {[%clk 0:01:02]} 31. gxf5 {[%clk 0:00:17]}  fxe2 {[%clk 0:01:02]} 32. Rg1+ {[%clk 0:00:17]}  Kh7 {[%clk 0:01:00]} 33. f6 {[%clk 0:00:17]}  Rg8 {[%clk 0:00:48]} 34. Rxg8 {[%clk 0:00:16]}  Kxg8 {[%clk 0:00:49]} 35. Kxe2 {[%clk 0:00:16]}  Be8 {[%clk 0:00:45]} 36. Ne3 {[%clk 0:00:14]}  Bg6 {[%clk 0:00:36]} 37. Kf3 {[%clk 0:00:13]}  Kf7 {[%clk 0:00:34]} 38. Kf4 {[%clk 0:00:12]}  Bb1 {[%clk 0:00:28]} 39. Ng4 {[%clk 0:00:08]}  Kg6 {[%clk 0:00:24]} 40. Nf2 {[%clk 0:00:06]}  Bc2 {[%clk 0:00:21]} 41. b4 {[%clk 0:00:04]}  axb4 {[%clk 0:00:20]} 42. cxb4 {[%clk 0:00:04]}  cxb4 {[%clk 0:00:20]} 43. Ke3 {[%clk 0:00:04]}  Bxa4 {[%clk 0:00:17]} 44. Kd4 {[%clk 0:00:04]}  Bc2 {[%clk 0:00:15]} 45. Nh3 {[%clk 0:00:02]}  b3 {[%clk 0:00:10]} 46. Nf4+ {[%clk 0:00:03]}  Kf7 {[%clk 0:00:09]} 47. Kc3 {[%clk 0:00:03]}  b5 {[%clk 0:00:09]} 48. Ne2 {[%clk 0:00:03]}  b4+ {[%clk 0:00:08]} 49. Kb2 {[%clk 0:00:03]}  Kg6 {[%clk 0:00:05]} 50. Nd4 {[%clk 0:00:04]}  Bf5 {[%clk 0:00:01]} 51. Nxb3 {[%clk 0:00:03]} 1-0


[Site "https://www.chess.com"]

[Event "Titled Tuesday Blitz October 11 Early 2022"]
[White "Fernandez, Michael"]
[Black "Zaloznyy, Mike"]
[WhiteFideId "5803560"]
[BlackFideId "2023075"]
[WhiteElo "2110"]
[BlackElo "2126"]
[Result "1-0"]
[Round "04"]
[TimeControl "180+1"]
[Date "2022.10.12"]
[WhiteClock "0:00:52"]
[BlackClock "0:01:23"]

1. e4 {[%clk 0:02:32]}  c6 {[%clk 0:02:59]} 2. Nc3 {[%clk 0:02:32]}  d5 {[%clk 0:02:59]} 3. Qf3 {[%clk 0:02:32]}  dxe4 {[%clk 0:02:59]} 4. Nxe4 {[%clk 0:02:32]}  Nf6 {[%clk 0:02:59]} 5. b3 {[%clk 0:02:26]}  Nxe4 {[%clk 0:02:57]} 6. Qxe4 {[%clk 0:02:27]}  Qd5 {[%clk 0:02:58]} 7. Qxd5 {[%clk 0:02:15]}  cxd5 {[%clk 0:02:59]} 8. Bb2 {[%clk 0:02:13]}  Nc6 {[%clk 0:02:59]} 9. Nf3 {[%clk 0:02:12]}  f6 {[%clk 0:02:46]} 10. c4 {[%clk 0:02:03]}  dxc4 {[%clk 0:02:40]} 11. Bxc4 {[%clk 0:02:02]}  e5 {[%clk 0:02:41]} 12. O-O-O {[%clk 0:01:56]}  Bg4 {[%clk 0:02:38]} 13. d4 {[%clk 0:01:46]}  O-O-O {[%clk 0:02:28]} 14. dxe5 {[%clk 0:01:43]}  Rxd1+ {[%clk 0:02:13]} 15. Rxd1 {[%clk 0:01:40]}  Bxf3 {[%clk 0:02:13]} 16. gxf3 {[%clk 0:01:17]}  fxe5 {[%clk 0:02:04]} 17. Be6+ {[%clk 0:01:11]}  Kc7 {[%clk 0:02:04]} 18. Rd7+ {[%clk 0:01:08]}  Kb6 {[%clk 0:02:04]} 19. f4 {[%clk 0:01:02]}  Bc5 {[%clk 0:01:45]} 20. fxe5 {[%clk 0:00:56]}  Bxf2 {[%clk 0:01:32]} 21. Rxg7 {[%clk 0:00:56]}  Rc8 {[%clk 0:01:23]} 22. Bxc8 {[%clk 0:00:52]} 1-0


[Site "https://www.chess.com"]

[Event "Titled Tuesday Blitz October 11 Early 2022"]
[White "Gabrielian, Artur"]
[Black "Cruz Lledo, Pablo"]
[WhiteFideId "4131002"]
[BlackFideId "2297361"]
[WhiteElo "2432"]
[BlackElo "2304"]
[Result "1-0"]
[Round "04"]
[TimeControl "180+1"]
[Date "2022.10.12"]
[WhiteClock "0:01:54"]
[BlackClock "0:01:36"]

1. e4 {[%clk 0:03:00]}  d5 {[%clk 0:02:55]} 2. exd5 {[%clk 0:03:00]}  Qxd5 {[%clk 0:02:56]} 3. Nc3 {[%clk 0:03:00]}  Qd6 {[%clk 0:02:56]} 4. d4 {[%clk 0:03:00]}  a6 {[%clk 0:02:55]} 5. Nf3 {[%clk 0:02:59]}  Nf6 {[%clk 0:02:55]} 6. g3 {[%clk 0:02:58]}  Nc6 {[%clk 0:02:53]} 7. d5 {[%clk 0:02:50]}  Ne5 {[%clk 0:02:46]} 8. Bf4 {[%clk 0:02:44]}  Nxf3+ {[%clk 0:02:46]} 9. Qxf3 {[%clk 0:02:43]}  Qb6 {[%clk 0:02:45]} 10. Rb1 {[%clk 0:02:29]}  Bg4 {[%clk 0:02:42]} 11. Qd3 {[%clk 0:02:22]}  e6 {[%clk 0:02:38]} 12. Bg2 {[%clk 0:02:17]}  O-O-O {[%clk 0:02:37]} 13. O-O {[%clk 0:02:14]}  Bd6 {[%clk 0:02:34]} 14. Be3 {[%clk 0:02:12]}  Qa5 {[%clk 0:02:28]} 15. b4 {[%clk 0:02:10]}  Bxb4 {[%clk 0:02:27]} 16. Rxb4 {[%clk 0:02:09]}  Qxb4 {[%clk 0:02:27]} 17. Rb1 {[%clk 0:02:09]}  Qa5 {[%clk 0:02:19]} 18. d6 {[%clk 0:01:56]}  Rxd6 {[%clk 0:02:12]} 19. Bxb7+ {[%clk 0:01:56]}  Kd7 {[%clk 0:02:06]} 20. Qc4 {[%clk 0:01:55]}  Nd5 {[%clk 0:01:37]} 21. Nxd5 {[%clk 0:01:54]}  exd5 {[%clk 0:01:36]} 22. Qxg4+ {[%clk 0:01:54]} 1-0


[Site "https://www.chess.com"]

[Event "Titled Tuesday Blitz October 11 Early 2022"]
[White "Guerrero Olmos, Sergio"]
[Black "Visakh N R"]
[WhiteFideId "2257238"]
[BlackFideId "25012223"]
[WhiteElo "2272"]
[BlackElo "2466"]
[Result "0-1"]
[Round "04"]
[TimeControl "180+1"]
[Date "2022.10.12"]
[WhiteClock "0:02:03"]
[BlackClock "0:01:13"]

1. d4 {[%clk 0:03:00]}  d5 {[%clk 0:02:57]} 2. Nf3 {[%clk 0:03:00]}  Nf6 {[%clk 0:02:57]} 3. Bf4 {[%clk 0:03:00]}  g6 {[%clk 0:02:48]} 4. e3 {[%clk 0:03:00]}  Bg7 {[%clk 0:02:48]} 5. Be2 {[%clk 0:03:00]}  O-O {[%clk 0:02:48]} 6. O-O {[%clk 0:03:01]}  Nh5 {[%clk 0:02:48]} 7. Bg5 {[%clk 0:02:59]}  c5 {[%clk 0:02:47]} 8. c3 {[%clk 0:02:59]}  cxd4 {[%clk 0:02:46]} 9. exd4 {[%clk 0:02:59]}  Nc6 {[%clk 0:02:45]} 10. Nbd2 {[%clk 0:02:59]}  f6 {[%clk 0:02:44]} 11. Bh4 {[%clk 0:02:58]}  Nf4 {[%clk 0:02:39]} 12. Bg3 {[%clk 0:02:54]}  Nxe2+ {[%clk 0:02:34]} 13. Qxe2 {[%clk 0:02:53]}  Re8 {[%clk 0:02:34]} 14. Rfe1 {[%clk 0:02:52]}  e5 {[%clk 0:02:32]} 15. dxe5 {[%clk 0:02:52]}  fxe5 {[%clk 0:02:32]} 16. Nb3 {[%clk 0:02:52]}  Bg4 {[%clk 0:02:20]} 17. h3 {[%clk 0:02:51]}  Bh5 {[%clk 0:02:18]} 18. Qb5 {[%clk 0:02:48]}  Bxf3 {[%clk 0:02:16]} 19. gxf3 {[%clk 0:02:47]}  Qd7 {[%clk 0:01:47]} 20. Rad1 {[%clk 0:02:46]}  d4 {[%clk 0:01:25]} 21. cxd4 {[%clk 0:02:44]}  exd4 {[%clk 0:01:23]} 22. Nc5 {[%clk 0:02:34]}  Qd5 {[%clk 0:01:22]} 23. b4 {[%clk 0:02:27]}  b6 {[%clk 0:01:18]} 24. Rxe8+ {[%clk 0:02:16]}  Rxe8 {[%clk 0:01:17]} 25. Rc1 {[%clk 0:02:10]}  bxc5 {[%clk 0:01:14]} 26. Rxc5 {[%clk 0:02:10]}  Qxf3 {[%clk 0:01:14]} 27. Qc4+ {[%clk 0:02:03]}  Kh8 {[%clk 0:01:13]} 0-1


[Site "https://www.chess.com"]

[Event "Titled Tuesday Blitz October 11 Early 2022"]
[White "Gulevich, Artem"]
[Black "Seletsky, Grigory"]
[WhiteFideId "24119580"]
[BlackFideId "14112191"]
[WhiteElo "2218"]
[BlackElo "2492"]
[Result "0-1"]
[Round "04"]
[TimeControl "180+1"]
[Date "2022.10.12"]
[WhiteClock "0:00:03"]
[BlackClock "0:00:03"]

1. Nf3 {[%clk 0:03:00]}  d5 {[%clk 0:02:57]} 2. b3 {[%clk 0:02:59]}  f6 {[%clk 0:02:56]} 3. d4 {[%clk 0:02:59]}  Bf5 {[%clk 0:02:54]} 4. Bb2 {[%clk 0:02:57]}  e6 {[%clk 0:02:54]} 5. e3 {[%clk 0:02:58]}  Bd6 {[%clk 0:02:52]} 6. Bd3 {[%clk 0:02:58]}  Ne7 {[%clk 0:02:52]} 7. O-O {[%clk 0:02:57]}  O-O {[%clk 0:02:51]} 8. Nbd2 {[%clk 0:02:57]}  c6 {[%clk 0:02:47]} 9. e4 {[%clk 0:02:55]}  Bg6 {[%clk 0:02:47]} 10. Qe2 {[%clk 0:02:53]}  Rf7 {[%clk 0:02:35]} 11. c4 {[%clk 0:02:51]}  Nd7 {[%clk 0:02:24]} 12. Rfe1 {[%clk 0:02:47]}  Nf8 {[%clk 0:02:17]} 13. e5 {[%clk 0:02:28]}  Bxd3 {[%clk 0:02:14]} 14. Qxd3 {[%clk 0:02:29]}  fxe5 {[%clk 0:02:14]} 15. dxe5 {[%clk 0:01:50]}  Bc5 {[%clk 0:02:03]} 16. Bd4 {[%clk 0:01:38]}  Bxd4 {[%clk 0:01:51]} 17. Qxd4 {[%clk 0:01:39]}  Nf5 {[%clk 0:01:48]} 18. Qg4 {[%clk 0:01:31]}  Nh6 {[%clk 0:01:27]} 19. Qh3 {[%clk 0:01:14]}  Ng6 {[%clk 0:01:23]} 20. cxd5 {[%clk 0:01:00]}  Nf4 {[%clk 0:01:11]} 21. Qg3 {[%clk 0:00:56]}  cxd5 {[%clk 0:00:54]} 22. Nd4 {[%clk 0:00:42]}  Qd7 {[%clk 0:00:24]} 23. N2f3 {[%clk 0:00:26]}  Ng6 {[%clk 0:00:23]} 24. Ng5 {[%clk 0:00:26]}  Re7 {[%clk 0:00:23]} 25. Qh3 {[%clk 0:00:18]}  Nf8 {[%clk 0:00:22]} 26. Rac1 {[%clk 0:00:16]}  Nf7 {[%clk 0:00:21]} 27. Ndxe6 {[%clk 0:00:11]}  Nxe6 {[%clk 0:00:21]} 28. Qxh7+ {[%clk 0:00:11]}  Kf8 {[%clk 0:00:21]} 29. Nxf7 {[%clk 0:00:09]}  Kxf7 {[%clk 0:00:20]} 30. Re3 {[%clk 0:00:10]}  Nf4 {[%clk 0:00:15]} 31. Rf3 {[%clk 0:00:05]}  Qg4 {[%clk 0:00:15]} 32. Rg3 {[%clk 0:00:01]}  Ne2+ {[%clk 0:00:14]} 33. Kh1 {[%clk 0:00:01]}  Nxg3+ {[%clk 0:00:13]} 34. fxg3 {[%clk 0:00:02]}  Rf8 {[%clk 0:00:11]} 35. Rf1+ {[%clk 0:00:03]}  Ke8 {[%clk 0:00:11]} 36. Rxf8+ {[%clk 0:00:02]}  Kxf8 {[%clk 0:00:11]} 37. h3 {[%clk 0:00:03]}  Qe4 {[%clk 0:00:08]} 38. Qh8+ {[%clk 0:00:02]}  Kf7 {[%clk 0:00:08]} 39. Qh5+ {[%clk 0:00:02]}  Kg8 {[%clk 0:00:08]} 40. Qg5 {[%clk 0:00:02]}  Qxe5 {[%clk 0:00:08]} 41. Qg4 {[%clk 0:00:03]}  Qe6 {[%clk 0:00:07]} 42. Qg5 {[%clk 0:00:03]}  a6 {[%clk 0:00:06]} 43. Kh2 {[%clk 0:00:03]}  Qf6 {[%clk 0:00:07]} 44. Qg4 {[%clk 0:00:03]}  Qe6 {[%clk 0:00:05]} 45. Qh5 {[%clk 0:00:03]}  Rf7 {[%clk 0:00:05]} 46. Qg5 {[%clk 0:00:04]}  g6 {[%clk 0:00:05]} 47. Qd8+ {[%clk 0:00:04]}  Kg7 {[%clk 0:00:05]} 48. Qh4 {[%clk 0:00:04]}  Qf6 {[%clk 0:00:05]} 49. Qg4 {[%clk 0:00:04]}  Re7 {[%clk 0:00:05]} 50. Qc8 {[%clk 0:00:04]}  d4 {[%clk 0:00:05]} 51. Qd8 {[%clk 0:00:05]}  Qe5 {[%clk 0:00:04]} 52. h4 {[%clk 0:00:04]}  Rf7 {[%clk 0:00:04]} 53. Qe8 {[%clk 0:00:04]}  Qf6 {[%clk 0:00:04]} 54. Qd8 {[%clk 0:00:03]}  Qxd8 {[%clk 0:00:03]} 0-1


[Site "https://www.chess.com"]